[Event "4NCL 2021-22"]
[Site "England"]
[Date "2022.03.27"]
[Round "6.14"]
[White "Bobras, Piotr"]
[Black "Chapman, Terry P D"]
[Result "1-0"]
[ECO "B15"]
[WhiteElo "2500"]
[BlackElo "2240"]
[Annotator "ChessBase"]
[PlyCount "105"]
[EventDate "2021.11.27"]
[EventType "team-tourn"]
[EventCountry "ENG"]
[SourceTitle "playchess.com"]
[Source "ChessBase"]
[SourceQuality "1"]
[TimeControl "40/6000+30:3000+30"]

1. e4 {[%emt 0:00:39]} c6 {[%emt 0:00:29]} 2. d4 {[%emt 0:00:19]} d5 {[%emt 0:00:03]} 3. Nc3 {[%emt 0:00:05]} dxe4 {[%emt 0:00:03]} 4. Nxe4 {[%emt 0:00:05]} Nf6 {[%emt 0:00:04]} 5. Nxf6+ {[%emt 0:00:07]} exf6 {[%emt 0:00:02]} 6. Bc4 {[%emt 0:00:45]} Be7 {[%emt 0:04:30]} 7. Ne2 {[%emt 0:05:07]} Na6 {[%emt 0:01:51]} 8. O-O {[%emt 0:03:38]} Nc7 {[%emt 0:00:33]} 9. Bf4 {[%emt 0:09:04]} O-O {[%emt 0:03:48]} 10. Re1 {[%emt 0:07:54]} Re8 {[%emt 0:04:03]} 11. Qd3 {[%emt 0:10:19]} Bd6 {[%emt 0:19:14]} 12. Qg3 {[%emt 0:16:44]} Bxf4 {[%emt 0:01:21]} 13. Qxf4 {[%emt 0:00:06]} Be6 {[%emt 0:05:12]} 14. Bd3 {[%emt 0:01:57]} Nd5 {[%emt 0:01:22]} 15. Qd2 {[%emt 0:05:11]} Qd7 {[%emt 0:06:04]} 16. c4 {[%emt 0:09:53]} Ne7 {[%emt 0:11:06]} 17. Rad1 {[%emt 0:00:08]} Rad8 {[%emt 0:02:05]} 18. b3 {[%emt 0:06:18]} Bf5 {[%emt 0:10:16]} 19. h3 {[%emt 0:04:31]} Bxd3 {[%emt 0:01:51]} 20. Qxd3 {[%emt 0:01:49]} g6 {[%emt 0:00:34]} 21. Nc3 {[%emt 0:04:08]} Kg7 {[%emt 0:17:12]} 22. d5 {[%emt 0:06:12]} cxd5 {[%emt 0:00:32]} 23. Nxd5 {[%emt 0:02:59]} Nxd5 {[%emt 0:00:12]} 24. Rxe8 {[%emt 0:00:17]} Qxe8 {[%emt 0:03:55]} 25. cxd5 {[%emt 0:03:09]} Rd6 {[%emt 0:00:34]} 26. a4 {[%emt 0:01:23]} a5 {[%emt 0:01:42]} 27. Qc3 {[%emt 0:06:11]} Qd8 {[%emt 0:01:25]} 28. Qc4 {[%emt 0:01:36]} h5 {[%emt 0:02:37]} 29. h4 {[%emt 0:01:33]} b6 {[%emt 0:01:24]} 30. g3 {[%emt 0:00:08]} Qd7 {[%emt 0:03:16]} 31. Kg2 {[%emt 0:00:53]} Kh6 {[%emt 0:01:17]} 32. Qe4 {[%emt 0:01:18]} Kg7 {[%emt 0:01:37]} 33. Rd3 {[%emt 0:00:02]} Kf8 {[%emt 0:03:33]} 34. Rd2 {[%emt 0:01:55]} Kg7 {[%emt 0:00:12]} 35. Kh2 {[%emt 0:00:35]} Kh7 {[%emt 0:00:39]} 36. Kg1 {[%emt 0:00:10]} Kg7 {[%emt 0:00:10]} 37. Kg2 {[%emt 0:00:13]} Kf8 {[%emt 0:00:37]} 38. Rd4 {[%emt 0:01:08]} Kg7 {[%emt 0:00:52]} 39. Qf3 {[%emt 0:00:11]} Qe7 {[%emt 0:01:42]} 40. Rc4 {[%emt 0:01:01]} Qe5 {[%emt 0:01:43]} 41. Rc6 {[%emt 0:01:23]} Rxc6 {[%emt 0:11:02]} 42. dxc6 {[%emt 0:00:04]} f5 {[%emt 0:00:35]} 43. Qd3 {[%emt 0:01:38]} f4 {[%emt 0:17:06]} 44. Qc4 {[%emt 0:02:30]} Qc7 {[%emt 0:02:16]} 45. gxf4 {[%emt 0:00:15]} Kf8 {[%emt 0:01:34]} 46. Kf3 {[%emt 0:08:53]} Ke7 {[%emt 0:00:37]} 47. Qd5 {[%emt 0:01:57]} f6 {[%emt 0:04:11]} 48. Ke4 {[%emt 0:00:07]} Qc8 {[%emt 0:05:09]} 49. f5 {[%emt 0:01:19]} gxf5+ {[%emt 0:04:06]} 50. Kf4 {[%emt 0:00:04]} Qc7+ {[%emt 0:02:20]} 51. Kxf5 {[%emt 0:00:06]} Kf8 {[%emt 0:00:12]} 52. f3 {[%emt 0:07:12]} Qh7+ {[%emt 0:04:09]} 53. Kxf6 {[%emt 0:00:52]} 1-0

[Event "4NCL 2021-22"]
[Site "England"]
[Date "2022.03.27"]
[Round "6.15"]
[White "French, Max"]
[Black "Kolbus, Dietmar"]
[Result "0-1"]
[ECO "D36"]
[WhiteElo "2246"]
[BlackElo "2305"]
[Annotator "NA"]
[PlyCount "108"]
[EventDate "2021.11.27"]
[EventType "team-tourn"]
[EventCountry "ENG"]
[SourceTitle "playchess.com"]
[Source "ChessBase"]
[SourceQuality "1"]
[TimeControl "40/6000+30:3000+30"]

1. d4 {[%emt 0:00:06]} d5 {[%emt 0:01:24]} 2. c4 {[%emt 0:00:07]} e6 {[%emt 0:00:05]} 3. Nc3 {[%emt 0:00:08]} Nf6 {[%emt 0:01:17]} 4. cxd5 {[%emt 0:02:05]} exd5 {[%emt 0:00:11]} 5. Bg5 {[%emt 0:00:08]} c6 {[%emt 0:00:33]} 6. e3 {[%emt 0:02:04]} Be7 {[%emt 0:00:26]} 7. Bd3 {[%emt 0:00:15]} Nbd7 {[%emt 0:00:31]} 8. Qc2 {[%emt 0:02:52]} Nf8 {[%emt 0:00:25]} 9. Nf3 {[%emt 0:01:43]} Ne6 {[%emt 0:02:23]} 10. Bh4 {[%emt 0:00:13]} g6 {[%emt 0:14:09]} 11. Bg3 {[%emt 0:18:14]} Ng7 {[%emt 0:03:05]} 12. Rb1 {[%emt 0:05:42]} Bf5 {[%emt 0:01:59]} 13. O-O {[%emt 0:03:14]} O-O {[%emt 0:00:33]} 14. b4 {[%emt 0:01:16]} a6 {[%emt 0:03:06]} 15. a4 {[%emt 0:02:26]} Bxd3 {[%emt 0:00:55]} 16. Qxd3 {[%emt 0:00:09]} b5 {[%emt 0:01:39]} 17. Rfc1 {[%emt 0:17:23]} Rc8 {[%emt 0:04:56]} 18. e4 {[%emt 0:12:09]} dxe4 {[%emt 0:04:20]} 19. Nxe4 {[%emt 0:00:06]} Ne6 {[%emt 0:03:15]} 20. Be5 {[%emt 0:06:42]} Nxe4 {[%emt 0:02:10]} 21. Qxe4 {[%emt 0:00:07]} Qd5 {[%emt 0:00:19]} 22. Qe3 {[%emt 0:04:30]} (22. Qc2 $15) 22... Rfe8 {[%emt 0:04:15]} 23. h4 {[%emt 0:02:08]} (23. axb5 $15 axb5 24. Re1) 23... f6 {[%emt 0:02:08]} 24. Bg3 {[%emt 0:02:29]} Bf8 {[%emt 0:00:21]} 25. Qc3 {[%emt 0:06:16]} Red8 {[%emt 0:14:35]} (25... bxa4 $17 26. Qa1 Qb5) 26. Rd1 {[%emt 0:00:35]} Kf7 $15 {[%emt 0:11:50]} 27. a5 {[%emt 0:08:52]} Bh6 {[%emt 0:05:01]} 28. Qc2 {[%emt 0:03:09]} Qc4 {[%emt 0:08:37]} 29. Qe4 {[%emt 0:01:39]} Re8 {[%emt 0:01:09]} 30. Qd3 {[%emt 0:01:48]} Qxd3 {[%emt 0:03:11]} 31. Rxd3 {[%emt 0:00:05]} Red8 {[%emt 0:00:11]} 32. Rdd1 {[%emt 0:02:53]} Rd5 {[%emt 0:00:14]} 33. Rb3 {[%emt 0:01:25]} c5 {[%emt 0:04:35]} 34. bxc5 {[%emt 0:00:08]} Rcxc5 {[%emt 0:00:11]} 35. dxc5 {[%emt 0:01:16]} Rxd1+ {[%emt 0:00:09]} 36. Kh2 {[%emt 0:00:03]} Nxc5 {[%emt 0:00:33]} 37. Rc3 {[%emt 0:01:10]} Bf8 {[%emt 0:06:03]} 38. Bf4 {[%emt 0:01:41]} Ke6 {[%emt 0:03:49]} 39. Be3 {[%emt 0:01:51]} Kd5 {[%emt 0:00:18]} 40. Nd2 {[%emt 0:00:51]} Bd6+ {[%emt 0:01:45]} 41. g3 {[%emt 0:01:39]} b4 {[%emt 0:06:31]} 42. Rc2 {[%emt 0:01:25]} b3 {[%emt 0:00:24]} 43. Rb2 {[%emt 0:01:15]} Be5 {[%emt 0:00:25]} 44. Nxb3 {[%emt 0:02:18]} Bxb2 {[%emt 0:00:16]} 45. Nxc5 {[%emt 0:00:14]} Ba3 {[%emt 0:04:59]} 46. Nd7 {[%emt 0:02:14]} Be7 {[%emt 0:01:15]} 47. g4 {[%emt 0:07:18]} Kc6 {[%emt 0:00:27]} 48. Nb6 {[%emt 0:00:06]} Kb5 {[%emt 0:00:21]} 49. Nc8 {[%emt 0:00:20]} Bb4 {[%emt 0:00:29]} 50. h5 {[%emt 0:01:00]} Kxa5 {[%emt 0:00:26]} 51. Kg2 {[%emt 0:01:01]} Ka4 {[%emt 0:00:31]} 52. Kf3 {[%emt 0:00:28]} Kb3 {[%emt 0:00:11]} 53. g5 {[%emt 0:00:27]} f5 {[%emt 0:00:49]} 54. Kf4 {[%emt 0:00:46]} a5 {[%emt 0:00:31]} 0-1

[Event "4NCL 2021-22"]
[Site "England"]
[Date "2022.03.27"]
[Round "6.16"]
[White "Terbe, Julianna"]
[Black "Ratnesan, Radha"]
[Result "1-0"]
[ECO "E06"]
[WhiteElo "2285"]
[BlackElo "1623"]
[Annotator "NA"]
[PlyCount "93"]
[EventDate "2021.11.27"]
[EventType "team-tourn"]
[EventCountry "ENG"]
[SourceTitle "playchess.com"]
[Source "ChessBase"]
[SourceQuality "1"]
[TimeControl "40/6000+30:3000+30"]

1. Nf3 {[%emt 0:00:03]} Nf6 {[%emt 0:00:04]} 2. g3 {[%emt 0:00:13]} e6 {[%emt 0:00:08]} 3. Bg2 {[%emt 0:00:05]} d5 {[%emt 0:00:12]} 4. O-O {[%emt 0:00:09]} Be7 {[%emt 0:00:39]} 5. d4 {[%emt 0:00:11]} O-O {[%emt 0:00:41]} 6. c4 {[%emt 0:00:06]} c5 {[%emt 0:05:54]} 7. cxd5 {[%emt 0:01:00]} Nxd5 {[%emt 0:02:55]} 8. e4 {[%emt 0:00:19]} Nf6 {[%emt 0:03:08]} 9. e5 {[%emt 0:05:44]} Nd5 {[%emt 0:01:23]} 10. Nbd2 {[%emt 0:02:36]} Nc6 {[%emt 0:08:21]} 11. dxc5 {[%emt 0:00:42]} Bxc5 {[%emt 0:00:20]} 12. Ne4 {[%emt 0:00:30]} Be7 $1 {[%emt 0:02:22]} 13. Qe2 {[%emt 0:06:01]} Qc7 {[%emt 0:06:47]} 14. Nc3 {[%emt 0:00:24]} Nxc3 {[%emt 0:03:00]} 15. bxc3 {[%emt 0:00:04]} b6 {[%emt 0:19:53]} 16. Nd4 {[%emt 0:06:11]} Bb7 {[%emt 0:00:00]} 17. Nb5 {[%emt 0:02:02]} Qc8 {[%emt 0:02:22]} 18. Bf4 {[%emt 0:00:49]} Ba6 {[%emt 0:06:01]} 19. Rfd1 {[%emt 0:05:13]} Bc5 {[%emt 0:11:15]} 20. a4 {[%emt 0:01:50]} Rb8 {[%emt 0:12:51]} 21. Qg4 {[%emt 0:03:31]} Ne7 {[%emt 0:03:55]} 22. Nxa7 {[%emt 0:02:46]} Qc7 {[%emt 0:00:29]} 23. Nb5 {[%emt 0:00:13]} Bxb5 {[%emt 0:00:28]} 24. axb5 {[%emt 0:00:04]} Rfd8 {[%emt 0:01:02]} 25. Qe2 {[%emt 0:13:20]} Rd7 {[%emt 0:02:42]} 26. g4 {[%emt 0:04:29]} Ng6 {[%emt 0:02:12]} (26... Rbd8 $14 {feels stronger.}) 27. Bg3 {[%emt 0:00:27]} h6 {[%emt 0:01:13]} 28. Be4 {[%emt 0:03:06]} Ne7 {[%emt 0:01:14]} 29. Kg2 $16 {[%emt 0:05:20]} (29. Rxd7 $18 Qxd7 30. Rd1) 29... Rbd8 {[%emt 0:02:43]} 30. Rxd7 {[%emt 0:01:10]} Qxd7 {[%emt 0:00:37]} 31. h4 {[%emt 0:01:05]} Nd5 {[%emt 0:02:28]} 32. Rc1 {[%emt 0:03:12]} Nc7 {[%emt 0:01:21]} 33. c4 {[%emt 0:00:44]} Qd2 {[%emt 0:00:33]} 34. Qf1 {[%emt 0:10:46]} Qd4 {[%emt 0:02:48]} 35. Bf3 {[%emt 0:00:46]} Qd7 {[%emt 0:01:22]} 36. Ra1 {[%emt 0:01:18]} Ne8 {[%emt 0:00:33]} 37. Qe2 {[%emt 0:00:31]} Kh7 {[%emt 0:02:11]} 38. h5 {[%emt 0:01:32]} Qc7 {[%emt 0:01:20]} 39. Bc6 {[%emt 0:02:35]} Qe7 {[%emt 0:01:08]} 40. Kh3 {[%emt 0:01:25]} Bb4 {[%emt 0:00:18]} 41. Bh4 {[%emt 0:53:19]} f6 {[%emt 0:02:07]} 42. Qe4+ {[%emt 0:00:00]} Kg8 {[%emt 0:00:21]} 43. Bxe8 {[%emt 0:00:00]} Rxe8 {[%emt 0:00:28]} 44. exf6 {[%emt 0:00:00]} gxf6 {[%emt 0:00:47]} 45. Qg6+ {[%emt 0:00:00]} Kf8 {[%emt 0:00:21]} 46. Bxf6 {[%emt 0:00:00]} Qf7 {[%emt 0:00:22]} 47. Qxh6+ {[%emt 0:00:00]} 1-0

[Event "4NCL 2021-22"]
[Site "England"]
[Date "2022.03.27"]
[Round "6.17"]
[White "O'Donnell, Conor"]
[Black "Pert, Nicholas"]
[Result "1/2-1/2"]
[ECO "E21"]
[WhiteElo "2281"]
[BlackElo "2546"]
[Annotator "ChessBase"]
[PlyCount "38"]
[EventDate "2021.11.27"]
[EventType "team-tourn"]
[EventCountry "ENG"]
[SourceTitle "playchess.com"]
[Source "ChessBase"]
[SourceQuality "1"]
[TimeControl "40/6000+30:3000+30"]

1. d4 {[%emt 0:01:50]} Nf6 {[%emt 0:03:06]} 2. c4 {[%emt 0:00:47]} e6 {[%emt 0:00:05]} 3. Nc3 {[%emt 0:01:06]} Bb4 {[%emt 0:00:05]} 4. e3 {[%emt 0:00:04]} O-O {[%emt 0:01:14]} 5. Bd2 {[%emt 0:00:28]} b6 {[%emt 0:02:03]} 6. Nf3 {[%emt 0:15:29]} Bxc3 {[%emt 0:03:34]} 7. Bxc3 {[%emt 0:00:08]} Ne4 {[%emt 0:00:04]} 8. Rc1 {[%emt 0:02:15]} Bb7 {[%emt 0:05:00]} 9. Be2 {[%emt 0:00:40]} d6 {[%emt 0:02:06]} 10. O-O {[%emt 0:01:10]} Nd7 {[%emt 0:01:58]} 11. Nd2 {[%emt 0:05:32]} Nxc3 {[%emt 0:03:08]} 12. Rxc3 {[%emt 0:00:13]} c5 {[%emt 0:01:56]} 13. dxc5 {[%emt 0:09:32]} dxc5 {[%emt 0:15:40]} 14. Bf3 {[%emt 0:02:36]} Qc7 {[%emt 0:01:34]} 15. Bxb7 {[%emt 0:04:22]} Qxb7 {[%emt 0:00:03]} 16. Nf3 {[%emt 0:03:54]} Rad8 {[%emt 0:03:14]} 17. Rd3 {[%emt 0:03:38]} Qc7 {[%emt 0:00:42]} 18. Qd2 {[%emt 0:02:17]} Nb8 {[%emt 0:01:53]} 19. Rd1 {[%emt 0:00:18]} Nc6 {[%emt 0:00:21]} 1/2-1/2

[Event "4NCL 2021-22"]
[Site "England"]
[Date "2022.03.27"]
[Round "6.18"]
[White "Pert, Richard G"]
[Black "Derakhshani, Borna"]
[Result "1/2-1/2"]
[ECO "D10"]
[WhiteElo "2415"]
[BlackElo "2371"]
[Annotator "NA"]
[PlyCount "87"]
[EventDate "2021.11.27"]
[EventType "team-tourn"]
[EventCountry "ENG"]
[SourceTitle "playchess.com"]
[Source "ChessBase"]
[SourceQuality "1"]
[TimeControl "40/6000+30:3000+30"]

1. d4 {[%emt 0:00:03]} d5 {[%emt 0:11:00]} 2. c4 {[%emt 0:01:12]} c6 {[%emt 0:00:05]} 3. Nc3 {[%emt 0:00:18]} dxc4 {[%emt 0:00:42]} 4. e3 {[%emt 0:04:55]} b5 {[%emt 0:00:04]} 5. a4 {[%emt 0:00:09]} b4 {[%emt 0:00:09]} 6. Ne4 {[%emt 0:00:13]} Qd5 {[%emt 0:00:09]} 7. Ng3 {[%emt 0:00:33]} Nf6 {[%emt 0:00:25]} 8. Nf3 {[%emt 0:02:44]} Ba6 {[%emt 0:01:52]} 9. Be2 {[%emt 0:03:12]} Nbd7 {[%emt 0:02:33]} 10. O-O {[%emt 0:00:44]} e6 {[%emt 0:01:43]} 11. b3 {[%emt 0:11:41]} Be7 {[%emt 0:10:11]} 12. Nd2 {[%emt 0:06:11]} O-O {[%emt 0:03:32]} 13. Nxc4 {[%emt 0:01:36]} Bxc4 {[%emt 0:08:37]} 14. Bxc4 {[%emt 0:01:39]} (14. bxc4 $16 Qa5 15. c5) 14... Qa5 $1 {[%emt 0:00:21]} 15. Bb2 {[%emt 0:03:15]} Rfd8 {[%emt 0:03:53]} 16. Qe2 {[%emt 0:05:55]} Nb6 {[%emt 0:05:06]} 17. Rac1 {[%emt 0:01:27]} Rac8 {[%emt 0:02:04]} ({Black should try} 17... Nbd5 $14) 18. Ba6 {[%emt 0:09:00]} Rc7 {[%emt 0:01:18]} 19. Rc2 {[%emt 0:00:44]} Qd5 {[%emt 0:03:40]} 20. Bc4 {[%emt 0:01:31]} ({White should play} 20. e4 $16 Qd7 21. Rfc1) 20... Nxc4 {[%emt 0:10:09]} 21. Rxc4 {[%emt 0:00:23]} Rdc8 {[%emt 0:02:00]} 22. Rfc1 {[%emt 0:01:39]} Qa5 {[%emt 0:03:06]} 23. Qf3 {[%emt 0:04:23]} Qb6 {[%emt 0:04:32]} 24. h3 {[%emt 0:07:01]} h6 {[%emt 0:00:39]} 25. Ne4 {[%emt 0:13:21]} Nxe4 {[%emt 0:08:46]} 26. Qxe4 {[%emt 0:00:06]} Bf6 {[%emt 0:01:13]} 27. R1c2 $11 {[%emt 0:03:28]} (27. Qg4 $14) 27... c5 {[%emt 0:06:58]} 28. Qf4 {[%emt 0:13:33]} Rc6 {[%emt 0:03:18]} 29. dxc5 {[%emt 0:04:48]} Rxc5 {[%emt 0:00:02]} 30. Rxc5 {[%emt 0:02:47]} Rxc5 {[%emt 0:00:02]} 31. Rxc5 {[%emt 0:00:05]} Qxc5 {[%emt 0:00:02]} 32. Bxf6 {[%emt 0:00:06]} gxf6 {[%emt 0:00:12]} 33. Qxf6 {[%emt 0:00:21]} Qc1+ {[%emt 0:00:17]} 34. Kh2 {[%emt 0:00:07]} Qd1 {[%emt 0:00:16]} 35. Qxh6 {[%emt 0:02:36]} Qxb3 {[%emt 0:00:26]} 36. Qg5+ {[%emt 0:00:10]} Kh7 {[%emt 0:00:46]} 37. Qh5+ {[%emt 0:01:31]} Kg8 {[%emt 0:02:16]} 38. Qg5+ {[%emt 0:00:08]} Kh7 {[%emt 0:00:04]} 39. Qh4+ {[%emt 0:02:18]} Kg8 {[%emt 0:00:25]} 40. Qg3+ {[%emt 0:01:05]} Kh7 {[%emt 0:01:27]} 41. Qh4+ {[%emt 0:50:28]} Kg8 {[%emt 0:50:24]} 42. Qg3+ {[%emt 0:00:06]} Kh7 {[%emt 0:00:05]} 43. Qh4+ {[%emt 0:00:00]} Kg8 {[%emt 0:00:00]} 44. Qg5+ {[%emt 0:00:00]} 1/2-1/2

[Event "4NCL 2021-22"]
[Site "England"]
[Date "2022.03.27"]
[Round "6.19"]
[White "Willow, Jonah B"]
[Black "Kirk, Ezra"]
[Result "0-1"]
[ECO "C03"]
[WhiteElo "2365"]
[BlackElo "2438"]
[Annotator "NA"]
[PlyCount "86"]
[EventDate "2021.11.27"]
[EventType "team-tourn"]
[EventCountry "ENG"]
[SourceTitle "playchess.com"]
[Source "ChessBase"]
[SourceQuality "1"]
[TimeControl "40/6000+30:3000+30"]

1. e4 {[%emt 0:00:01]} e6 {[%emt 0:02:44]} 2. d4 {[%emt 0:00:15]} d5 {[%emt 0:00:21]} 3. Nd2 {[%emt 0:00:09]} h6 {[%emt 0:00:10]} 4. Ngf3 {[%emt 0:00:21]} Nf6 {[%emt 0:00:55]} 5. Bd3 {[%emt 0:00:04]} c5 {[%emt 0:00:37]} 6. e5 {[%emt 0:00:21]} Nfd7 {[%emt 0:00:06]} 7. c3 {[%emt 0:00:03]} Nc6 {[%emt 0:00:13]} 8. O-O {[%emt 0:00:06]} g5 {[%emt 0:00:21]} 9. h3 {[%emt 0:00:03]} h5 {[%emt 0:03:46]} 10. Re1 {[%emt 0:00:02]} g4 {[%emt 0:06:24]} 11. Nh2 {[%emt 0:00:06]} cxd4 {[%emt 0:01:49]} 12. cxd4 {[%emt 0:00:20]} gxh3 {[%emt 0:06:53]} 13. Ndf3 {[%emt 0:00:28]} Rg8 {[%emt 0:06:44]} 14. g3 {[%emt 0:00:24]} Bb4 {[%emt 0:15:15]} 15. Bd2 {[%emt 0:05:31]} Be7 {[%emt 0:01:58]} 16. Bf1 {[%emt 0:05:01]} (16. Kh1 $1 $14) 16... h4 {[%emt 0:02:57]} 17. g4 {[%emt 0:01:55]} Qb6 {[%emt 0:04:19]} 18. Bc3 {[%emt 0:02:00]} f6 {[%emt 0:06:11]} 19. Bxh3 {[%emt 0:39:28]} (19. b4 $1 $14) 19... fxe5 {[%emt 0:01:39]} 20. dxe5 {[%emt 0:01:44]} Nc5 {[%emt 0:00:44]} 21. Bd4 {[%emt 0:05:30]} Nxd4 {[%emt 0:01:53]} 22. Qxd4 {[%emt 0:03:54]} Bd7 {[%emt 0:05:31]} 23. b4 {[%emt 0:05:12]} Ne4 {[%emt 0:01:39]} 24. Qxb6 {[%emt 0:00:24]} axb6 {[%emt 0:00:08]} 25. a3 {[%emt 0:00:06]} Ng5 {[%emt 0:09:21]} 26. Nxg5 {[%emt 0:01:47]} Bxg5 {[%emt 0:00:09]} 27. Nf3 {[%emt 0:00:06]} Bf4 {[%emt 0:00:20]} 28. Red1 {[%emt 0:07:15]} Rc8 $17 {[%emt 0:03:32]} 29. Rd4 {[%emt 0:07:14]} Bc1 {[%emt 0:02:27]} 30. Rd1 {[%emt 0:02:13]} Bb2 {[%emt 0:05:31]} 31. Ra2 {[%emt 0:02:13]} Bc3 {[%emt 0:01:44]} 32. Re2 {[%emt 0:07:40]} Ba4 {[%emt 0:02:04]} 33. Rc1 {[%emt 0:02:09]} Ke7 {[%emt 0:02:09]} 34. Ne1 {[%emt 0:03:37]} Rgf8 {[%emt 0:13:41]} 35. Bg2 {[%emt 0:02:33]} Rf4 {[%emt 0:01:42]} 36. Re3 {[%emt 0:00:13]} d4 {[%emt 0:01:19]} 37. Re4 {[%emt 0:00:04]} Rxe4 {[%emt 0:00:12]} 38. Bxe4 {[%emt 0:00:01]} Bc6 {[%emt 0:00:27]} 39. Bd3 {[%emt 0:03:01]} Bd2 {[%emt 0:00:50]} 40. Rd1 {[%emt 0:00:45]} Bf4 {[%emt 0:01:03]} 41. Be2 {[%emt 0:53:12]} h3 {[%emt 0:11:20]} 42. Bf3 {[%emt 0:00:00]} Bxf3 {[%emt 0:01:51]} 43. Nxf3 {[%emt 0:00:00]} d3 {[%emt 0:00:10]} 0-1

[Event "4NCL 2021-22"]
[Site "England"]
[Date "2022.03.27"]
[Round "6.20"]
[White "Eggleston, David J"]
[Black "Fitzsimons, David"]
[Result "1/2-1/2"]
[ECO "B15"]
[WhiteElo "2343"]
[BlackElo "2369"]
[Annotator "ChessBase"]
[PlyCount "33"]
[EventDate "2021.11.27"]
[EventType "team-tourn"]
[EventCountry "ENG"]
[SourceTitle "playchess.com"]
[Source "ChessBase"]
[SourceQuality "1"]
[TimeControl "40/6000+30:3000+30"]

1. e4 {[%emt 0:00:05]} g6 {[%emt 0:00:11]} 2. d4 {[%emt 0:00:07]} Bg7 {[%emt 0:00:05]} 3. Nf3 {[%emt 0:01:43]} c6 {[%emt 0:00:20]} 4. Nc3 {[%emt 0:00:06]} d5 {[%emt 0:00:13]} 5. h3 {[%emt 0:00:15]} Nf6 {[%emt 0:00:31]} 6. Bd3 {[%emt 0:03:28]} dxe4 {[%emt 0:00:29]} 7. Nxe4 {[%emt 0:00:06]} Nxe4 {[%emt 0:00:09]} 8. Bxe4 {[%emt 0:00:05]} Nd7 {[%emt 0:00:08]} 9. c3 {[%emt 0:03:42]} O-O {[%emt 0:00:32]} 10. Bg5 {[%emt 0:01:13]} Qb6 {[%emt 0:02:31]} 11. Qd2 {[%emt 0:01:30]} e5 {[%emt 0:00:55]} 12. dxe5 {[%emt 0:03:03]} Nxe5 {[%emt 0:00:20]} 13. Nxe5 {[%emt 0:00:17]} Bxe5 {[%emt 0:00:10]} 14. O-O {[%emt 0:00:24]} Be6 {[%emt 0:01:13]} 15. Bh6 {[%emt 0:06:42]} Rad8 {[%emt 0:02:02]} 16. Qc2 {[%emt 0:07:07]} Bg7 {[%emt 0:01:59]} 17. Bxg7 {[%emt 0:01:04]} 1/2-1/2

[Event "4NCL 2021-22"]
[Site "England"]
[Date "2022.03.27"]
[Round "6.21"]
[White "Haydon, David L"]
[Black "Arkell, Keith C"]
[Result "1/2-1/2"]
[ECO "A39"]
[WhiteElo "2294"]
[BlackElo "2380"]
[Annotator "ChessBase"]
[PlyCount "28"]
[EventDate "2021.11.27"]
[EventType "team-tourn"]
[EventCountry "ENG"]
[SourceTitle "playchess.com"]
[Source "ChessBase"]
[SourceQuality "1"]
[TimeControl "40/6000+30:3000+30"]

1. Nf3 {[%emt 0:00:04]} Nf6 {[%emt 0:00:05]} 2. c4 {[%emt 0:00:33]} c5 {[%emt 0:00:04]} 3. Nc3 {[%emt 0:02:13]} g6 {[%emt 0:00:59]} 4. g3 {[%emt 0:00:24]} Nc6 {[%emt 0:00:06]} 5. Bg2 {[%emt 0:02:14]} Bg7 {[%emt 0:00:03]} 6. O-O {[%emt 0:00:25]} O-O {[%emt 0:00:03]} 7. d4 {[%emt 0:00:17]} cxd4 {[%emt 0:00:09]} 8. Nxd4 {[%emt 0:00:26]} Nxd4 {[%emt 0:00:04]} 9. Qxd4 {[%emt 0:00:09]} d6 {[%emt 0:00:02]} 10. b3 {[%emt 0:08:46]} Ne4 {[%emt 0:08:01]} 11. Qxe4 {[%emt 0:00:21]} Bxc3 {[%emt 0:00:05]} 12. Bh6 {[%emt 0:00:06]} Bxa1 {[%emt 0:00:46]} 13. Bxf8 {[%emt 0:01:34]} Qxf8 {[%emt 0:00:05]} 14. Rxa1 {[%emt 0:00:07]} Rb8 {[%emt 0:00:16]} 1/2-1/2

[Event "4NCL 2021-22"]
[Site "England"]
[Date "2022.03.27"]
[Round "6.22"]
[White "Steil-Antoni, Fiona"]
[Black "Yao, Lan"]
[Result "1-0"]
[ECO "B07"]
[WhiteElo "2163"]
[BlackElo "2297"]
[Annotator "ChessBase"]
[PlyCount "71"]
[EventDate "2021.11.27"]
[EventType "team-tourn"]
[EventCountry "ENG"]
[SourceTitle "playchess.com"]
[Source "ChessBase"]
[SourceQuality "1"]
[TimeControl "40/6000+30:3000+30"]

1. e4 {[%emt 0:00:02]} d6 {[%emt 0:00:05]} 2. d4 {[%emt 0:00:05]} Nf6 {[%emt 0:00:03]} 3. Bd3 {[%emt 0:00:17]} e5 {[%emt 0:00:07]} 4. c3 {[%emt 0:00:50]} Be7 {[%emt 0:00:39]} 5. Nf3 {[%emt 0:00:26]} Nbd7 {[%emt 0:00:39]} 6. O-O {[%emt 0:01:24]} O-O {[%emt 0:00:41]} 7. Re1 {[%emt 0:01:14]} c6 {[%emt 0:01:04]} 8. Nbd2 {[%emt 0:01:06]} Re8 {[%emt 0:01:22]} 9. Nf1 {[%emt 0:02:05]} Bf8 {[%emt 0:04:02]} 10. Ng3 {[%emt 0:01:19]} g6 {[%emt 0:01:27]} 11. h3 {[%emt 0:01:38]} Bg7 {[%emt 0:01:35]} 12. Be3 {[%emt 0:02:00]} h6 {[%emt 0:14:11]} 13. Qd2 {[%emt 0:05:37]} Kh7 {[%emt 0:00:20]} 14. Rad1 {[%emt 0:00:53]} Qc7 {[%emt 0:06:09]} 15. Bb1 {[%emt 0:05:06]} b5 {[%emt 0:07:21]} 16. Nh2 {[%emt 0:05:57]} Bb7 {[%emt 0:12:52]} 17. f4 {[%emt 0:03:32]} c5 {[%emt 0:03:51]} 18. fxe5 {[%emt 0:02:15]} dxe5 {[%emt 0:00:09]} 19. d5 {[%emt 0:03:14]} Qd6 {[%emt 0:01:11]} 20. Rf1 {[%emt 0:01:19]} Rac8 {[%emt 0:02:33]} 21. b3 {[%emt 0:00:52]} Nb6 {[%emt 0:07:58]} 22. Rf3 {[%emt 0:03:01]} Rf8 {[%emt 0:05:38]} 23. Rdf1 {[%emt 0:00:20]} Rc7 {[%emt 0:07:21]} 24. Rxf6 {[%emt 0:12:46]} Bxf6 {[%emt 0:00:06]} 25. Bxh6 {[%emt 0:00:28]} Rh8 {[%emt 0:09:47]} 26. Ng4 {[%emt 0:04:30]} Bh4 {[%emt 0:01:40]} 27. Bg5 {[%emt 0:06:27]} Kg8 {[%emt 0:15:47]} 28. Bxh4 {[%emt 0:02:39]} Rxh4 {[%emt 0:00:06]} 29. Qg5 {[%emt 0:00:49]} Rxg4 {[%emt 0:01:31]} 30. hxg4 {[%emt 0:00:03]} c4 {[%emt 0:03:58]} 31. b4 {[%emt 0:02:32]} Nd7 {[%emt 0:01:05]} 32. Nf5 {[%emt 0:01:58]} Qb6+ {[%emt 0:00:03]} 33. Kh1 {[%emt 0:00:42]} Nf8 {[%emt 0:00:29]} 34. Ne7+ {[%emt 0:02:34]} Kg7 {[%emt 0:00:32]} 35. d6 {[%emt 0:01:40]} Nh7 {[%emt 0:01:00]} 36. Rxf7+ {[%emt 0:01:42]} 1-0